[Event "*** SCC Grand Prix: Titled Tuesday Blitz"]
[Site "Chess.com"]
[Date "2020.07.07"]
[Round "7"]
[White "Siniauski"]
[Black "Cxrjs"]
[Result "1-0"]
[WhiteElo "2461"]
[BlackElo "2281"]
[TimeControl "180+1"]
[EndTime "11:20:35 PDT"]
[Termination "Siniauski won on time"]

1. e4 {[%clk 0:02:55.6]} 1... e5 {[%clk 0:02:59.5]} 2. Nf3 {[%clk 0:02:55.9]}
2... Nc6 {[%clk 0:02:59.9]} 3. Bb5 {[%clk 0:02:55.2]} 3... a6 {[%clk 0:03:00]}
4. Ba4 {[%clk 0:02:54.9]} 4... Nf6 {[%clk 0:03:00.3]} 5. O-O {[%clk 0:02:54]}
5... Be7 {[%clk 0:03:00.2]} 6. Re1 {[%clk 0:02:53.8]} 6... b5 {[%clk 0:03:00.4]}
7. Bb3 {[%clk 0:02:53.7]} 7... d6 {[%clk 0:03:00.9]} 8. c3 {[%clk 0:02:53.5]}
8... O-O {[%clk 0:03:01.1]} 9. h3 {[%clk 0:02:53.9]} 9... Bb7 {[%clk 0:03:01.6]}
10. d4 {[%clk 0:02:48.3]} 10... Re8 {[%clk 0:03:01.5]} 11. Ng5 {[%clk
0:02:43.9]} 11... Rf8 {[%clk 0:03:01]} 12. Nf3 {[%clk 0:02:44.2]} 12... Re8
{[%clk 0:03:00.9]} 13. Nbd2 {[%clk 0:02:44.2]} 13... Bf8 {[%clk 0:02:59.3]} 14.
d5 {[%clk 0:02:38.3]} 14... Nb8 {[%clk 0:02:57.9]} 15. Nf1 {[%clk 0:02:37.7]}
15... Nbd7 {[%clk 0:02:57.7]} 16. Ng3 {[%clk 0:02:34.9]} 16... c6 {[%clk
0:02:57.9]} 17. dxc6 {[%clk 0:02:34]} 17... Bxc6 {[%clk 0:02:58.8]} 18. Nf5
{[%clk 0:02:27.3]} 18... Nc5 {[%clk 0:02:39.1]} 19. Bd5 {[%clk 0:01:54.7]} 19...
Bxd5 {[%clk 0:02:16.2]} 20. exd5 {[%clk 0:01:55.6]} 20... e4 {[%clk 0:02:11]}
21. N3d4 {[%clk 0:01:33.6]} 21... Nd3 {[%clk 0:01:58.8]} 22. Bg5 {[%clk
0:01:11.9]} 22... Nxe1 {[%clk 0:01:48.8]} 23. Qxe1 {[%clk 0:01:12.8]} 23... h6
{[%clk 0:01:38.7]} 24. Bh4 {[%clk 0:00:46.6]} 24... g5 {[%clk 0:01:34.1]} 25.
Bg3 {[%clk 0:00:38.8]} 25... Nxd5 {[%clk 0:01:27.8]} 26. Rd1 {[%clk 0:00:37.6]}
26... Qf6 {[%clk 0:01:21.3]} 27. Bh2 {[%clk 0:00:22.1]} 27... Rac8 {[%clk
0:00:58.4]} 28. a3 {[%clk 0:00:21.1]} 28... Rc5 {[%clk 0:00:50.7]} 29. g4 {[%clk
0:00:20.3]} 29... Nf4 {[%clk 0:00:48.2]} 30. Qe3 {[%clk 0:00:17.1]} 30... Qe5
{[%clk 0:00:30.7]} 31. Kh1 {[%clk 0:00:12.5]} 31... Rcc8 {[%clk 0:00:22.4]} 32.
Ne2 {[%clk 0:00:12.6]} 32... Qc5 {[%clk 0:00:17.2]} 33. Nxf4 {[%clk 0:00:10.5]}
33... Qxe3 {[%clk 0:00:15.1]} 34. fxe3 {[%clk 0:00:11.4]} 34... gxf4 {[%clk
0:00:15.2]} 35. Bxf4 {[%clk 0:00:12.3]} 35... Re6 {[%clk 0:00:08.9]} 36. Rd5
{[%clk 0:00:11.2]} 36... Rc5 {[%clk 0:00:07.4]} 37. Rd4 {[%clk 0:00:09.2]} 37...
Rc6 {[%clk 0:00:04.7]} 38. Kg2 {[%clk 0:00:08]} 38... Kh7 {[%clk 0:00:04.8]} 39.
Ng3 {[%clk 0:00:07.3]} 39... Kg6 {[%clk 0:00:04]} 40. h4 {[%clk 0:00:06.4]}
40... f5 {[%clk 0:00:03]} 41. gxf5+ {[%clk 0:00:06.5]} 41... Kf6 {[%clk
0:00:03.4]} 42. fxe6 {[%clk 0:00:06.9]} 42... Kxe6 {[%clk 0:00:04.3]} 43. Nxe4
{[%clk 0:00:07.3]} 43... d5 {[%clk 0:00:04.1]} 44. Ng3 {[%clk 0:00:07]} 44...
Bc5 {[%clk 0:00:02]} 45. Rd3 {[%clk 0:00:06.6]} 45... Rc8 {[%clk 0:00:02.2]} 46.
Kf3 {[%clk 0:00:05.8]} 46... Rg8 {[%clk 0:00:03.1]} 47. Rd1 {[%clk 0:00:05.4]}
47... h5 {[%clk 0:00:02.9]} 48. Nxh5 {[%clk 0:00:04.4]} 48... Rh8 {[%clk
0:00:03.3]} 49. Ng3 {[%clk 0:00:04.4]} 49... Kf6 {[%clk 0:00:03.1]} 50. Rh1
{[%clk 0:00:04.7]} 50... Be7 {[%clk 0:00:01.6]} 51. h5 {[%clk 0:00:04.9]} 51...
a5 {[%clk 0:00:02.2]} 52. h6 {[%clk 0:00:05.2]} 52... b4 {[%clk 0:00:02.8]} 53.
axb4 {[%clk 0:00:05.1]} 53... axb4 {[%clk 0:00:03.7]} 54. Rh5 {[%clk 0:00:05.7]}
54... bxc3 {[%clk 0:00:04]} 55. bxc3 {[%clk 0:00:06.6]} 55... Kg6 {[%clk
0:00:04.3]} 56. Rxd5 {[%clk 0:00:06.7]} 56... Bf6 {[%clk 0:00:03.4]} 57. Rd6
{[%clk 0:00:06.5]} 57... Kf7 {[%clk 0:00:03.5]} 58. Ra6 {[%clk 0:00:05.6]} 58...
Bxc3 {[%clk 0:00:03.4]} 59. Ne4 {[%clk 0:00:06]} 59... Bb2 {[%clk 0:00:02.8]}
60. h7 {[%clk 0:00:03.3]} 1-0

[Event "*** SCC Grand Prix: Titled Tuesday Blitz"]
[Site "Chess.com"]
[Date "2020.07.07"]
[Round "7"]
[White "chessplayer9919"]
[Black "Thee-Chessboy"]
[Result "0-1"]
[WhiteElo "2654"]
[BlackElo "2546"]
[TimeControl "180+1"]
[EndTime "11:20:41 PDT"]
[Termination "Thee-Chessboy won by resignation"]

1. d4 {[%clk 0:03:00.9]} 1... Nf6 {[%clk 0:02:58.3]} 2. c4 {[%clk 0:02:59]} 2...
g6 {[%clk 0:02:57.9]} 3. Nc3 {[%clk 0:02:58.9]} 3... Bg7 {[%clk 0:02:58.4]} 4.
e4 {[%clk 0:02:58.9]} 4... d6 {[%clk 0:02:58.7]} 5. f4 {[%clk 0:02:58.8]} 5...
O-O {[%clk 0:02:58.6]} 6. Nf3 {[%clk 0:02:59.2]} 6... Bg4 {[%clk 0:02:55.7]} 7.
Be2 {[%clk 0:02:58.6]} 7... Nfd7 {[%clk 0:02:54.6]} 8. Be3 {[%clk 0:02:57.6]}
8... e5 {[%clk 0:02:52.1]} 9. fxe5 {[%clk 0:02:57.1]} 9... dxe5 {[%clk
0:02:50.6]} 10. d5 {[%clk 0:02:57.6]} 10... Qe7 {[%clk 0:02:45.4]} 11. O-O
{[%clk 0:02:53.8]} 11... a5 {[%clk 0:02:41.5]} 12. Nb5 {[%clk 0:02:53.7]} 12...
Nc5 {[%clk 0:02:36.5]} 13. d6 {[%clk 0:02:32.1]} 13... cxd6 {[%clk 0:02:35.5]}
14. Qxd6 {[%clk 0:02:31.8]} 14... Qxd6 {[%clk 0:02:30.6]} 15. Nxd6 {[%clk
0:02:32.7]} 15... Nba6 {[%clk 0:02:28.3]} 16. h3 {[%clk 0:02:21]} 16... Bxf3
{[%clk 0:02:24.1]} 17. gxf3 {[%clk 0:02:20.3]} 17... Rfd8 {[%clk 0:02:19.2]} 18.
Rfd1 {[%clk 0:02:17.6]} 18... b6 {[%clk 0:02:14.7]} 19. Nb5 {[%clk 0:02:05.5]}
19... Nb4 {[%clk 0:02:10.5]} 20. Bf2 {[%clk 0:01:48.4]} 20... Nc2 {[%clk
0:01:58.3]} 21. Rac1 {[%clk 0:01:45.3]} 21... Nd4 {[%clk 0:01:58.2]} 22. Kf1
{[%clk 0:01:30.6]} 22... Rac8 {[%clk 0:01:49.3]} 23. b3 {[%clk 0:01:18.9]} 23...
Nce6 {[%clk 0:01:46.2]} 24. Nxd4 {[%clk 0:01:16.4]} 24... Nxd4 {[%clk
0:01:45.1]} 25. Bxd4 {[%clk 0:01:13]} 25... exd4 {[%clk 0:01:46]} 26. f4 {[%clk
0:01:11.8]} 26... Bh6 {[%clk 0:01:45.7]} 27. Bg4 {[%clk 0:00:44.5]} 27... Rc5
{[%clk 0:01:40]} 28. Rd3 {[%clk 0:00:43.7]} 28... Bxf4 {[%clk 0:01:38.8]} 29.
Rcd1 {[%clk 0:00:44.1]} 29... Be5 {[%clk 0:01:36.7]} 30. a3 {[%clk 0:00:44.4]}
30... Rc6 {[%clk 0:01:34.8]} 31. Ke2 {[%clk 0:00:40.9]} 31... h5 {[%clk
0:01:31]} 32. Bf3 {[%clk 0:00:40.8]} 32... Kg7 {[%clk 0:01:27.9]} 33. R3d2
{[%clk 0:00:38.6]} 33... a4 {[%clk 0:01:25.2]} 34. Rb1 {[%clk 0:00:16.2]} 34...
axb3 {[%clk 0:01:18.9]} 35. Rxb3 {[%clk 0:00:17.1]} 35... Rdd6 {[%clk
0:01:14.7]} 36. Kd3 {[%clk 0:00:16.2]} 36... Rf6 {[%clk 0:01:12.7]} 37. Be2
{[%clk 0:00:11.5]} 37... Bd6 {[%clk 0:00:56.1]} 38. Kxd4 {[%clk 0:00:04.6]}
38... Bc5+ {[%clk 0:00:55.9]} 39. Kc3 {[%clk 0:00:04.7]} 39... Rce6 {[%clk
0:00:55.6]} 40. Bd3 {[%clk 0:00:03.2]} 40... Rf3 {[%clk 0:00:55.6]} 41. Kc2
{[%clk 0:00:03.4]} 41... Rxh3 {[%clk 0:00:54.9]} 42. Rb5 {[%clk 0:00:03.5]}
42... Bxa3 {[%clk 0:00:49.8]} 43. Be2 {[%clk 0:00:01.6]} 43... Bc5 {[%clk
0:00:47.3]} 44. Bd3 {[%clk 0:00:01.2]} 44... h4 {[%clk 0:00:46.3]} 45. Re2
{[%clk 0:00:01.5]} 45... Re5 {[%clk 0:00:44.8]} 46. Rb3 {[%clk 0:00:02.4]} 46...
Rh1 {[%clk 0:00:43.2]} 47. Rd2 {[%clk 0:00:02.3]} 47... h3 {[%clk 0:00:42.7]}
48. Rb1 {[%clk 0:00:02.8]} 48... Rxb1 {[%clk 0:00:40.3]} 49. Kxb1 {[%clk
0:00:03.7]} 49... Rg5 {[%clk 0:00:38.1]} 50. Rh2 {[%clk 0:00:03.1]} 50... Rg3
{[%clk 0:00:36.9]} 51. Bc2 {[%clk 0:00:01.5]} 51... Bg1 {[%clk 0:00:35.2]} 52.
Rh1 {[%clk 0:00:01.8]} 52... h2 {[%clk 0:00:35.2]} 53. Kb2 {[%clk 0:00:02.7]}
53... Kf6 {[%clk 0:00:34.6]} 54. Ba4 {[%clk 0:00:02.7]} 54... Ke5 {[%clk
0:00:34.4]} 55. Bc6 {[%clk 0:00:03.3]} 55... f6 {[%clk 0:00:32.9]} 56. Be8
{[%clk 0:00:03.2]} 56... g5 {[%clk 0:00:32.4]} 57. Kc2 {[%clk 0:00:04.1]} 57...
g4 {[%clk 0:00:31.8]} 58. Kd2 {[%clk 0:00:04.3]} 58... Ra3 {[%clk 0:00:30.8]}
59. Ke2 {[%clk 0:00:04.1]} 59... g3 {[%clk 0:00:30.8]} 60. Kf1 {[%clk
0:00:02.2]} 60... Ra2 {[%clk 0:00:29.5]} 61. Rxg1 {[%clk 0:00:02.6]} 61...
hxg1=Q+ {[%clk 0:00:27.5]} 62. Kxg1 {[%clk 0:00:03.5]} 62... Kf4 {[%clk
0:00:27.5]} 63. Bc6 {[%clk 0:00:02.6]} 63... g2 {[%clk 0:00:25.9]} 64. Bd5
{[%clk 0:00:01.9]} 64... Kg3 {[%clk 0:00:25]} 0-1

[Event "*** SCC Grand Prix: Titled Tuesday Blitz"]
[Site "Chess.com"]
[Date "2020.07.07"]
[Round "7"]
[White "BlackBoarder"]
[Black "WIDBIFS"]
[Result "1-0"]
[WhiteElo "2605"]
[BlackElo "2781"]
[TimeControl "180+1"]
[EndTime "11:20:44 PDT"]
[Termination "BlackBoarder won on time"]

1. e4 {[%clk 0:03:00]} 1... g6 {[%clk 0:02:53.7]} 2. d4 {[%clk 0:02:59.8]} 2...
Bg7 {[%clk 0:02:54.2]} 3. Nc3 {[%clk 0:02:59.8]} 3... c6 {[%clk 0:02:54.6]} 4.
h3 {[%clk 0:02:44.1]} 4... d6 {[%clk 0:02:51.8]} 5. Nf3 {[%clk 0:02:41.7]} 5...
Nf6 {[%clk 0:02:51.7]} 6. Be2 {[%clk 0:02:38.5]} 6... O-O {[%clk 0:02:51.7]} 7.
O-O {[%clk 0:02:38.7]} 7... Nbd7 {[%clk 0:02:51.7]} 8. a4 {[%clk 0:02:36.2]}
8... Qc7 {[%clk 0:02:50.7]} 9. Re1 {[%clk 0:02:33.8]} 9... e5 {[%clk 0:02:51.2]}
10. Be3 {[%clk 0:02:28.2]} 10... Re8 {[%clk 0:02:48.7]} 11. dxe5 {[%clk
0:02:05.2]} 11... Nxe5 {[%clk 0:02:49.6]} 12. Nxe5 {[%clk 0:02:03.3]} 12... dxe5
{[%clk 0:02:50.5]} 13. a5 {[%clk 0:01:45.4]} 13... Be6 {[%clk 0:02:44.6]} 14. b3
{[%clk 0:01:39.6]} 14... b5 {[%clk 0:02:29.6]} 15. Qc1 {[%clk 0:01:11.2]} 15...
Nd7 {[%clk 0:02:23.1]} 16. a6 {[%clk 0:01:00.6]} 16... Bf8 {[%clk 0:02:19.5]}
17. Rd1 {[%clk 0:00:56.3]} 17... Rad8 {[%clk 0:02:11.1]} 18. Qb2 {[%clk
0:00:50.6]} 18... f6 {[%clk 0:02:10.1]} 19. Bg4 {[%clk 0:00:48.3]} 19... Bxg4
{[%clk 0:02:08]} 20. hxg4 {[%clk 0:00:47.8]} 20... Nc5 {[%clk 0:01:54.3]} 21. b4
{[%clk 0:00:40.5]} 21... Ne6 {[%clk 0:01:51.5]} 22. Qb3 {[%clk 0:00:39.2]} 22...
Qf7 {[%clk 0:01:39.2]} 23. Na2 {[%clk 0:00:28.3]} 23... Nd4 {[%clk 0:01:33.1]}
24. Qxf7+ {[%clk 0:00:27.8]} 24... Kxf7 {[%clk 0:01:34]} 25. c3 {[%clk
0:00:27.1]} 25... Nc2 {[%clk 0:01:30.2]} 26. Rac1 {[%clk 0:00:23.3]} 26... Nxe3
{[%clk 0:01:29.5]} 27. fxe3 {[%clk 0:00:24.2]} 27... c5 {[%clk 0:01:15.9]} 28.
Kf2 {[%clk 0:00:21.5]} 28... c4 {[%clk 0:01:13.6]} 29. Ke2 {[%clk 0:00:18.9]}
29... Ke6 {[%clk 0:01:11.5]} 30. Rh1 {[%clk 0:00:14.2]} 30... Rd7 {[%clk
0:01:11.6]} 31. Rcd1 {[%clk 0:00:13.2]} 31... Red8 {[%clk 0:01:11.6]} 32. Rxd7
{[%clk 0:00:13.3]} 32... Rxd7 {[%clk 0:01:12.5]} 33. Nc1 {[%clk 0:00:12.6]}
33... Bd6 {[%clk 0:01:03.5]} 34. Kf3 {[%clk 0:00:12.1]} 34... Bc7 {[%clk
0:01:02.1]} 35. Ke2 {[%clk 0:00:05.6]} 35... Bb6 {[%clk 0:01:02.4]} 36. Re1
{[%clk 0:00:05.5]} 36... h5 {[%clk 0:00:58.3]} 37. gxh5 {[%clk 0:00:05.4]} 37...
gxh5 {[%clk 0:00:59.2]} 38. Rh1 {[%clk 0:00:06]} 38... Rg7 {[%clk 0:00:59.3]}
39. Kf3 {[%clk 0:00:05.8]} 39... Rg5 {[%clk 0:00:58.1]} 40. Ne2 {[%clk
0:00:05.6]} 40... Kf7 {[%clk 0:00:41.3]} 41. Rd1 {[%clk 0:00:05.2]} 41... Ke6
{[%clk 0:00:32.1]} 42. Rd5 {[%clk 0:00:04.6]} 42... Rg8 {[%clk 0:00:28.1]} 43.
Rxb5 {[%clk 0:00:04.6]} 43... Rd8 {[%clk 0:00:28.3]} 44. Rd5 {[%clk 0:00:04.7]}
44... Rxd5 {[%clk 0:00:24.1]} 45. exd5+ {[%clk 0:00:05.6]} 45... Kxd5 {[%clk
0:00:25]} 46. Ng3 {[%clk 0:00:06.1]} 46... h4 {[%clk 0:00:19.9]} 47. Nf5 {[%clk
0:00:06.4]} 47... e4+ {[%clk 0:00:16.5]} 48. Ke2 {[%clk 0:00:04.6]} 48... Bc7
{[%clk 0:00:12.9]} 49. Nxh4 {[%clk 0:00:04.4]} 49... Be5 {[%clk 0:00:12.7]} 50.
Kd2 {[%clk 0:00:03.9]} 50... Kc6 {[%clk 0:00:13]} 51. Ng6 {[%clk 0:00:04]} 51...
Bd6 {[%clk 0:00:12.5]} 52. Nf4 {[%clk 0:00:03.5]} 52... Kb5 {[%clk 0:00:12.9]}
53. Nd5 {[%clk 0:00:02.5]} 53... Be5 {[%clk 0:00:13.4]} 54. Ne7 {[%clk
0:00:02.1]} 54... Kxa6 {[%clk 0:00:13.3]} 55. g4 {[%clk 0:00:02.6]} 55... Kb5
{[%clk 0:00:12.7]} 56. Ng6 {[%clk 0:00:03]} 56... Bd6 {[%clk 0:00:12.5]} 57. Nf4
{[%clk 0:00:03.4]} 57... a5 {[%clk 0:00:12.5]} 58. bxa5 {[%clk 0:00:03.2]} 58...
Kxa5 {[%clk 0:00:13.4]} 59. Nh3 {[%clk 0:00:02.5]} 59... Kb5 {[%clk 0:00:11.4]}
60. g5 {[%clk 0:00:03]} 60... f5 {[%clk 0:00:02.4]} 61. g6 {[%clk 0:00:03.3]}
61... Bf8 {[%clk 0:00:02.1]} 62. Nf4 {[%clk 0:00:03.3]} 62... Kc6 {[%clk
0:00:02.1]} 63. Nh5 {[%clk 0:00:03.1]} 1-0

[Event "*** SCC Grand Prix: Titled Tuesday Blitz"]
[Site "Chess.com"]
[Date "2020.07.07"]
[Round "7"]
[White "2nd_life"]
[Black "timator"]
[Result "1-0"]
[WhiteElo "2492"]
[BlackElo "2618"]
[TimeControl "180+1"]
[EndTime "11:20:45 PDT"]
[Termination "2nd_life won by resignation"]

1. e4 {[%clk 0:03:00.9]} 1... e5 {[%clk 0:02:59.3]} 2. f4 {[%clk 0:03:00.4]}
2... d6 {[%clk 0:02:57.7]} 3. Nf3 {[%clk 0:02:59.6]} 3... Nc6 {[%clk 0:02:56.8]}
4. Bb5 {[%clk 0:02:58.4]} 4... Nf6 {[%clk 0:02:52.5]} 5. Nc3 {[%clk 0:02:53]}
5... Be7 {[%clk 0:02:46]} 6. fxe5 {[%clk 0:02:46.3]} 6... dxe5 {[%clk
0:02:45.9]} 7. Nxe5 {[%clk 0:02:42]} 7... O-O {[%clk 0:02:43.7]} 8. Bxc6 {[%clk
0:02:37.3]} 8... Qd6 {[%clk 0:02:29.8]} 9. d4 {[%clk 0:02:25.3]} 9... bxc6
{[%clk 0:02:25.3]} 10. Bf4 {[%clk 0:01:55]} 10... Qe6 {[%clk 0:02:25.3]} 11. O-O
{[%clk 0:01:50.5]} 11... Ba6 {[%clk 0:02:24.6]} 12. Re1 {[%clk 0:01:46]} 12...
Rad8 {[%clk 0:02:24.7]} 13. Nf3 {[%clk 0:01:23.6]} 13... Rd7 {[%clk 0:02:08]}
14. Bg5 {[%clk 0:00:25]} 14... Rb8 {[%clk 0:02:02.7]} 15. b3 {[%clk 0:00:24.3]}
15... Bb4 {[%clk 0:02:00.6]} 16. Bd2 {[%clk 0:00:23.8]} 16... Re8 {[%clk
0:01:54.1]} 17. e5 {[%clk 0:00:23.6]} 17... Ng4 {[%clk 0:01:19.7]} 18. Ne4
{[%clk 0:00:20.2]} 18... Be7 {[%clk 0:01:19.8]} 19. h3 {[%clk 0:00:19.2]} 19...
Nh6 {[%clk 0:01:20]} 20. Bxh6 {[%clk 0:00:15.8]} 20... Qxh6 {[%clk 0:01:20.9]}
21. Qc1 {[%clk 0:00:13.2]} 21... Qe6 {[%clk 0:01:16.9]} 22. Qf4 {[%clk
0:00:12.9]} 22... h6 {[%clk 0:01:13.5]} 23. c3 {[%clk 0:00:12.7]} 23... Bd3
{[%clk 0:01:04.3]} 24. Rad1 {[%clk 0:00:10.5]} 24... Bxe4 {[%clk 0:00:59]} 25.
Qxe4 {[%clk 0:00:10.6]} 25... a5 {[%clk 0:00:59.5]} 26. c4 {[%clk 0:00:10.1]}
26... Red8 {[%clk 0:00:59.9]} 27. Kh1 {[%clk 0:00:09.4]} 27... Bb4 {[%clk
0:00:58.5]} 28. Rf1 {[%clk 0:00:08.6]} 28... a4 {[%clk 0:00:58.8]} 29. Rc1
{[%clk 0:00:05.1]} 29... Ra8 {[%clk 0:00:54.9]} 30. Qf4 {[%clk 0:00:04.6]} 30...
axb3 {[%clk 0:00:53.5]} 31. axb3 {[%clk 0:00:04.5]} 31... Ra3 {[%clk 0:00:53]}
32. Qe3 {[%clk 0:00:04.1]} 32... Rd8 {[%clk 0:00:44.7]} 33. Ra1 {[%clk
0:00:04.2]} 33... Rda8 {[%clk 0:00:44.9]} 34. Rxa3 {[%clk 0:00:04.4]} 34... Rxa3
{[%clk 0:00:45.8]} 35. Qd3 {[%clk 0:00:03.1]} 35... Ra5 {[%clk 0:00:39.2]} 36.
Rd1 {[%clk 0:00:02.5]} 36... Ra8 {[%clk 0:00:28.9]} 37. d5 {[%clk 0:00:02.9]}
37... Qd7 {[%clk 0:00:29.4]} 38. e6 {[%clk 0:00:01.8]} 38... fxe6 {[%clk
0:00:28.5]} 39. Ne5 {[%clk 0:00:02.4]} 39... Qd6 {[%clk 0:00:28.4]} 40. Nxc6
{[%clk 0:00:02.7]} 40... e5 {[%clk 0:00:24.2]} 41. Qe4 {[%clk 0:00:02.4]} 41...
Re8 {[%clk 0:00:24]} 42. Nxb4 {[%clk 0:00:02.3]} 42... Qxb4 {[%clk 0:00:23.8]}
43. Rd3 {[%clk 0:00:02.7]} 43... Qd6 {[%clk 0:00:20.4]} 44. Kh2 {[%clk
0:00:02.4]} 44... Rf8 {[%clk 0:00:20.2]} 45. Rf3 {[%clk 0:00:02.6]} 45... Rb8
{[%clk 0:00:19.4]} 46. Rg3 {[%clk 0:00:02.3]} 46... Rf8 {[%clk 0:00:17.7]} 47.
Rg6 {[%clk 0:00:02.4]} 47... Qe7 {[%clk 0:00:17.6]} 48. c5 {[%clk 0:00:02.1]}
48... Rf4 {[%clk 0:00:17]} 49. Qe3 {[%clk 0:00:02]} 49... Rf6 {[%clk 0:00:15]}
50. Rxf6 {[%clk 0:00:02]} 50... Qxf6 {[%clk 0:00:15.9]} 51. Qe4 {[%clk
0:00:02.4]} 51... Kf7 {[%clk 0:00:14]} 52. b4 {[%clk 0:00:02.8]} 52... Ke7
{[%clk 0:00:14.4]} 53. b5 {[%clk 0:00:03.2]} 53... Kd7 {[%clk 0:00:14.5]} 54.
c6+ {[%clk 0:00:03]} 54... Kd8 {[%clk 0:00:14.8]} 55. b6 {[%clk 0:00:02.8]}
55... cxb6 {[%clk 0:00:14.8]} 56. Qb4 {[%clk 0:00:03.3]} 56... Kc7 {[%clk
0:00:13.9]} 57. Qb5 {[%clk 0:00:02.8]} 57... Qf4+ {[%clk 0:00:13.6]} 58. Kh1
{[%clk 0:00:02.7]} 58... Qc1+ {[%clk 0:00:12.9]} 59. Kh2 {[%clk 0:00:03.1]}
59... Qf4+ {[%clk 0:00:12.6]} 60. Kg1 {[%clk 0:00:03.6]} 60... e4 {[%clk
0:00:12.7]} 61. Qa6 {[%clk 0:00:03.4]} 61... Qe3+ {[%clk 0:00:09.3]} 62. Kh2
{[%clk 0:00:03.6]} 62... Qf4+ {[%clk 0:00:09.3]} 63. Kg1 {[%clk 0:00:04.1]}
63... Qc1+ {[%clk 0:00:07.4]} 64. Kf2 {[%clk 0:00:04.4]} 64... Qf4+ {[%clk
0:00:05.7]} 65. Ke2 {[%clk 0:00:04.5]} 65... Kd6 {[%clk 0:00:03.7]} 66. Qxb6
{[%clk 0:00:04.7]} 66... Kxd5 {[%clk 0:00:04]} 67. c7 {[%clk 0:00:05]} 67... Qg5
{[%clk 0:00:02.2]} 68. Qb5+ {[%clk 0:00:04.9]} 68... Kd4 {[%clk 0:00:02.7]} 69.
Qxg5 {[%clk 0:00:05.8]} 69... hxg5 {[%clk 0:00:03.4]} 70. c8=Q {[%clk
0:00:06.6]} 1-0

[Event "*** SCC Grand Prix: Titled Tuesday Blitz"]
[Site "Chess.com"]
[Date "2020.07.07"]
[Round "7"]
[White "Msb2"]
[Black "Eltaj_Safarli"]
[Result "0-1"]
[WhiteElo "2859"]
[BlackElo "2941"]
[TimeControl "180+1"]
[EndTime "11:20:48 PDT"]
[Termination "Eltaj_Safarli won on time"]

1. d4 {[%clk 0:03:00.9]} 1... Nf6 {[%clk 0:02:59.4]} 2. c4 {[%clk 0:03:01.5]}
2... g6 {[%clk 0:03:00.3]} 3. Nc3 {[%clk 0:03:01.9]} 3... d5 {[%clk 0:03:00.9]}
4. cxd5 {[%clk 0:03:02.8]} 4... Nxd5 {[%clk 0:03:01.8]} 5. e4 {[%clk 0:03:03.5]}
5... Nxc3 {[%clk 0:03:01.8]} 6. bxc3 {[%clk 0:03:04.4]} 6... Bg7 {[%clk
0:03:02.4]} 7. Bc4 {[%clk 0:03:05.1]} 7... c5 {[%clk 0:03:02.1]} 8. Ne2 {[%clk
0:03:05.8]} 8... Nc6 {[%clk 0:03:02]} 9. Be3 {[%clk 0:03:06.4]} 9... O-O {[%clk
0:03:02.2]} 10. Rc1 {[%clk 0:03:06.8]} 10... Na5 {[%clk 0:03:01.7]} 11. Bd3
{[%clk 0:03:05.1]} 11... b6 {[%clk 0:03:01.8]} 12. h4 {[%clk 0:03:04.4]} 12...
e5 {[%clk 0:03:00.1]} 13. Qd2 {[%clk 0:03:04.4]} 13... h5 {[%clk 0:02:53.9]} 14.
Bg5 {[%clk 0:02:59]} 14... Qd7 {[%clk 0:02:52.5]} 15. Bh6 {[%clk 0:02:37.1]}
15... Bb7 {[%clk 0:02:46.4]} 16. Bxg7 {[%clk 0:02:28.6]} 16... Kxg7 {[%clk
0:02:47.3]} 17. Qg5 {[%clk 0:01:56.5]} 17... f6 {[%clk 0:02:42.1]} 18. Qe3
{[%clk 0:01:50.7]} 18... exd4 {[%clk 0:02:21.7]} 19. cxd4 {[%clk 0:01:51.6]}
19... cxd4 {[%clk 0:02:22.6]} 20. Qg3 {[%clk 0:01:47.8]} 20... Rac8 {[%clk
0:02:20.5]} 21. O-O {[%clk 0:01:47.8]} 21... Qg4 {[%clk 0:02:11.2]} 22. Qxg4
{[%clk 0:01:31.1]} 22... hxg4 {[%clk 0:02:12.1]} 23. Nxd4 {[%clk 0:01:31.7]}
23... Rfe8 {[%clk 0:02:07.7]} 24. Nb5 {[%clk 0:01:09.3]} 24... Rxc1 {[%clk
0:02:03.7]} 25. Rxc1 {[%clk 0:01:10.2]} 25... Re7 {[%clk 0:01:52.9]} 26. Nxa7
{[%clk 0:01:02.8]} 26... Bxe4 {[%clk 0:01:52.9]} 27. Nc8 {[%clk 0:01:03]} 27...
Re5 {[%clk 0:01:49.9]} 28. Bxe4 {[%clk 0:01:00.6]} 28... Rxe4 {[%clk 0:01:50.8]}
29. Nxb6 {[%clk 0:01:01.3]} 29... Kh6 {[%clk 0:01:51.4]} 30. Nd5 {[%clk
0:00:52.6]} 30... f5 {[%clk 0:01:48.2]} 31. g3 {[%clk 0:00:51.3]} 31... Nc4
{[%clk 0:01:45.1]} 32. Kg2 {[%clk 0:00:37.6]} 32... Rd4 {[%clk 0:01:43.1]} 33.
Nf4 {[%clk 0:00:36.8]} 33... Ne5 {[%clk 0:01:41]} 34. Rc8 {[%clk 0:00:31.2]}
34... Rd1 {[%clk 0:01:37.7]} 35. Ne6 {[%clk 0:00:27.1]} 35... Kh7 {[%clk
0:01:37.7]} 36. Rc7+ {[%clk 0:00:23.8]} 36... Kg8 {[%clk 0:01:34.5]} 37. Rc8+
{[%clk 0:00:23.1]} 37... Kf7 {[%clk 0:01:31.6]} 38. Ng5+ {[%clk 0:00:24]} 38...
Ke7 {[%clk 0:01:29.5]} 39. a4 {[%clk 0:00:23.1]} 39... Ra1 {[%clk 0:01:25.8]}
40. Ra8 {[%clk 0:00:21.5]} 40... Ra2 {[%clk 0:01:26.2]} 41. a5 {[%clk 0:00:20]}
41... Nd3 {[%clk 0:01:24.6]} 42. a6 {[%clk 0:00:20.5]} 42... Nxf2 {[%clk
0:01:16.9]} 43. Kf1 {[%clk 0:00:20.6]} 43... Nd3 {[%clk 0:01:10.1]} 44. a7
{[%clk 0:00:20.7]} 44... f4 {[%clk 0:00:56.8]} 45. gxf4 {[%clk 0:00:16.7]} 45...
Ra1+ {[%clk 0:00:56.7]} 46. Kg2 {[%clk 0:00:16.2]} 46... Nxf4+ {[%clk
0:00:57.6]} 47. Kg3 {[%clk 0:00:16.7]} 47... Nd5 {[%clk 0:00:55.2]} 48. Rh8
{[%clk 0:00:13.9]} 48... Ra3+ {[%clk 0:00:45.4]} 49. Kxg4 {[%clk 0:00:12.9]}
49... Nf6+ {[%clk 0:00:43.5]} 50. Kf4 {[%clk 0:00:12.3]} 50... Rxa7 {[%clk
0:00:43.6]} 51. Nf3 {[%clk 0:00:08.7]} 51... Ra5 {[%clk 0:00:40.4]} 52. Kg3
{[%clk 0:00:07.8]} 52... Nh5+ {[%clk 0:00:38.7]} 53. Kg4 {[%clk 0:00:07.8]}
53... Kf6 {[%clk 0:00:37.2]} 54. Rf8+ {[%clk 0:00:07.6]} 54... Kg7 {[%clk
0:00:37.5]} 55. Rb8 {[%clk 0:00:08.5]} 55... Ra4+ {[%clk 0:00:31.6]} 56. Kg5
{[%clk 0:00:08.6]} 56... Ra5+ {[%clk 0:00:29.9]} 57. Kg4 {[%clk 0:00:09.1]}
57... Ra3 {[%clk 0:00:30.5]} 58. Rb7+ {[%clk 0:00:09]} 58... Kh6 {[%clk
0:00:27.7]} 59. Rf7 {[%clk 0:00:07.3]} 59... Rb3 {[%clk 0:00:19.5]} 60. Kh3
{[%clk 0:00:07.7]} 60... Ng7 {[%clk 0:00:16.1]} 61. Kg4 {[%clk 0:00:06.8]} 61...
Rb4+ {[%clk 0:00:12.5]} 62. Kh3 {[%clk 0:00:06.5]} 62... Nf5 {[%clk 0:00:12.3]}
63. Rf8 {[%clk 0:00:05.6]} 63... Rf4 {[%clk 0:00:12]} 64. Ne5 {[%clk 0:00:02]}
64... Rxh4+ {[%clk 0:00:10.7]} 65. Kg2 {[%clk 0:00:02.7]} 65... Re4 {[%clk
0:00:11]} 66. Nf7+ {[%clk 0:00:02.9]} 66... Kg7 {[%clk 0:00:10.2]} 67. Ng5
{[%clk 0:00:02.8]} 67... Rg4+ {[%clk 0:00:10.5]} 68. Kf3 {[%clk 0:00:02]} 68...
Rxg5 {[%clk 0:00:11.4]} 0-1